fUSD/lending_fUSD_20260628
["ID","MTS","AMOUNT","RATE_DAILY","PERIOD"]
[426589403,1782640818000,-392.60342668,0.00011172,2]
[426589396,1782640818000,-500.0,0.00011172,2]
[426589393,1782640818000,-1955.95,0.00011167,2]
[426589394,1782640818000,-150.0,0.00011171,2]
[426589392,1782640818000,-1210.79274844,0.00011143,2]
[426589395,1782640818000,-500.0,0.00011172,2]
[426589402,1782640818000,-641.64002057,0.00011172,2]
[426589413,1782640818000,-354.08912749,0.00011172,2]
[426589406,1782640818000,-354.62991798,0.00011172,2]
[426589405,1782640818000,-500.0,0.00011172,2]
[426589416,1782640818000,-500.0,0.00011172,2]
[426589415,1782640818000,-500.0,0.00011172,2]
[426589414,1782640818000,-500.0,0.00011172,2]
[426589411,1782640818000,-284.58183023,0.00011172,2]
[426589417,1782640818000,-500.0,0.00011172,2]
[426589410,1782640818000,-16.95672489,0.00011172,2]
[426589409,1782640818000,-483.04327511,0.00011172,2]
[426589407,1782640818000,-150.35164807,0.00011172,2]
[426589408,1782640818000,-500.0,0.00011172,2]
[426589404,1782640818000,-500.0,0.00011172,2]
[426589412,1782640818000,-500.0,0.00011172,2]
[426589418,1782640819000,-500.0,0.00011172,2]
[426589420,1782640819000,-500.0,0.00011172,2]
[426589419,1782640819000,-500.0,0.00011172,2]
[426589421,1782640819000,-500.0,0.00011172,2]
[426589422,1782640819000,-500.0,0.00011172,2]
[426589424,1782640819000,-497.73297182,0.00011172,2]
[426589423,1782640819000,-500.0,0.00011172,2]
[426589426,1782640819000,-500.0,0.00011172,2]
[426589428,1782640819000,-500.0,0.00011172,2]
[426589429,1782640819000,-1346.63934557,0.00011173,2]
[426589430,1782640819000,-10000.0,0.00011173,2]
[426589431,1782640819000,-10000.0,0.00011173,2]
[426589425,1782640819000,-500.0,0.00011172,2]
[426589427,1782640819000,-500.0,0.00011172,2]
[426589432,1782640820000,-10000.0,0.00011173,2]
[426589434,1782640821000,-10000.0,0.00011173,2]
[426589433,1782640821000,-10000.0,0.00011173,2]
[426589435,1782640822000,-10000.0,0.00011173,2]
[426589437,1782640823000,-10000.0,0.00011173,2]
[426589436,1782640823000,-10000.0,0.00011173,2]
[426589438,1782640824000,-10000.0,0.00011173,2]
[426589439,1782640902000,150.0,0.0001122,7]
[426589440,1782640903000,150.0,0.0001188,7]
[426589441,1782640904000,150.0,0.0001188,7]
[426589442,1782640905000,218.29463045,0.0001188,7]
[426589444,1782640915000,500.0,0.00031,120]
[426589445,1782640946000,-1641.0,0.00011017,2]
[426589446,1782641022000,344.09007205,0.000111,7]
[426589448,1782641138000,-2754.6094883,0.00010845,2]
[426589447,1782641138000,-151.71,0.00010832,2]
[426589449,1782641228000,-1303.92630735,0.0001079,2]
[426589450,1782641229000,1815.77,0.00010251,2]
[426589451,1782641230000,1815.77,0.0001052,2]
[426589452,1782641233000,-44.04146665,0.0001079,2]
[426589453,1782641233000,-172.59783772,0.0001079,2]
[426589454,1782641236000,-1553.57376903,0.0001079,2]
[426589455,1782641271000,200.0,0.00010917,7]
[426589456,1782641272000,348.64,0.00010917,7]
[426589464,1782641340000,-250.0,0.00010956,2]
[426589463,1782641340000,-200.0,0.00010917,2]
[426589462,1782641340000,-200.0,0.00010917,2]
[426589457,1782641340000,-255.96,0.00010757,2]
[426589459,1782641340000,-89.59839325,0.0001079,2]
[426589466,1782641340000,-370.84106354,0.0001096,2]
[426589458,1782641340000,-150.0,0.00010773,2]
[426589465,1782641340000,-166.66,0.00010959,2]
[426589460,1782641340000,-467.1305117,0.00010845,2]
[426589467,1782641340000,-150.0,0.00011008,2]
[426589468,1782641340000,-216.54711319,0.0001104,2]
[426589475,1782641340000,-2269.14908725,0.00011173,2]
[426589474,1782641340000,-150.0,0.00011117,2]
[426589473,1782641340000,-370.84106353,0.00011115,2]
[426589461,1782641340000,-250.0,0.00010874,2]
[426589471,1782641340000,-868.57587124,0.0001106,2]
[426589470,1782641340000,-947.19412876,0.0001106,2]
[426589469,1782641340000,-175.0,0.0001106,2]
[426589472,1782641340000,-166.66,0.00011076,2]
[426589476,1782641347000,-9068.693522,0.00011173,2]
[426589493,1782641350000,-2440.57,0.00011314,2]
[426589494,1782641350000,-9999.99,0.00011329,2]
[426589492,1782641350000,-573.88,0.00011312,2]
[426589491,1782641350000,-7468.23369655,0.00011311,2]
[426589490,1782641350000,-2207.08630345,0.00011311,2]
[426589488,1782641350000,-1253.37,0.0001129,2]
[426589487,1782641350000,-150.0,0.0001129,2]
[426589489,1782641350000,-166.66,0.00011309,2]
[426589485,1782641350000,-2388.51,0.00011255,2]
[426589484,1782641350000,-607.11,0.00011247,2]
[426589483,1782641350000,-150.0,0.00011244,2]
[426589482,1782641350000,-182.0,0.00011226,2]
[426589480,1782641350000,-166.66,0.00011192,2]
[426589478,1782641350000,-3759.43,0.00011173,2]
[426589479,1782641350000,-250.0,0.00011182,2]
[426589477,1782641350000,-4617.37804518,0.00011173,2]
[426589486,1782641350000,-370.84106353,0.0001127,2]
[426589481,1782641350000,-594.14,0.00011212,2]
[426589497,1782641350000,-500.0,0.00011341,2]
[426589496,1782641350000,-206.00990306,0.00011341,2]
[426589495,1782641350000,-1815.77,0.0001133,2]
[426589513,1782641350000,-573.84,0.00011516,2]
[426589512,1782641350000,-150.0,0.00011492,2]
[426589514,1782641350000,-573.84,0.00011541,2]
[426589511,1782641350000,-573.84,0.00011492,2]
[426589510,1782641350000,-573.84,0.00011467,2]
[426589509,1782641350000,-167.16,0.00011457,2]
[426589507,1782641350000,-166.66,0.00011426,2]
[426589508,1782641350000,-573.84,0.00011443,2]
[426589499,1782641350000,-10445.02,0.00011342,2]
[426589506,1782641350000,-573.84,0.00011418,2]
[426589503,1782641350000,-299.99,0.0001137,2]
[426589504,1782641350000,-168.734161,0.0001137,2]
[426589502,1782641350000,-6088.16,0.0001137,2]
[426589500,1782641350000,-573.84,0.0001137,2]
[426589501,1782641350000,-150.99,0.0001137,2]
[426589498,1782641350000,-499.74810798,0.00011341,2]
[426589505,1782641350000,-573.84,0.00011394,2]
[426589515,1782641351000,-166.66,0.00011543,2]
[426589516,1782641351000,-573.84,0.00011565,2]
[426589518,1782641351000,-500.0,0.00011573,2]
[426589517,1782641351000,-1253.37,0.00011573,2]
[426589519,1782641351000,-150.0,0.00011589,2]
[426589521,1782641351000,-703.12310757,0.0001161,2]
[426589520,1782641351000,-573.84,0.00011589,2]
[426589523,1782641351000,-573.84,0.00011638,2]
[426589522,1782641351000,-573.84,0.00011614,2]
[426589525,1782641351000,-573.84,0.00011687,2]
[426589524,1782641351000,-573.84,0.00011663,2]
[426589533,1782641351000,-1253.37,0.00011855,2]
[426589532,1782641351000,-500.0,0.00011847,2]
[426589531,1782641351000,-573.84,0.00011834,2]
[426589529,1782641351000,-573.84,0.00011785,2]
[426589528,1782641351000,-573.84,0.0001176,2]
[426589527,1782641351000,-573.84,0.00011736,2]
[426589526,1782641351000,-573.84,0.00011711,2]
[426589530,1782641351000,-573.84,0.00011809,2]
[426589534,1782641354000,250.46,0.00011488,2]
[426589539,1782641359000,-494.78757434,0.00011931,2]
[426589537,1782641359000,-573.84,0.00011907,2]
[426589538,1782641359000,-250.0,0.00011929,2]
[426589535,1782641359000,-573.84,0.00011858,2]
[426589536,1782641359000,-573.84,0.00011882,2]
[426589540,1782641363000,-79.05242566,0.00011931,2]
[426589543,1782641363000,-3648.45938311,0.00011968,2]
[426589541,1782641363000,-573.84,0.00011956,2]
[426589542,1782641363000,-3390.32192943,0.00011968,2]
[426589546,1782641388000,-2643.33145889,0.00011968,2]
[426589545,1782641388000,-4197.04782985,0.00011968,2]
[426589582,1782641432000,-244.13389155,0.00012151,2]
[426589553,1782641432000,-2571.41851911,0.00011968,2]
[426589557,1782641432000,-4787.34545095,0.00011968,2]
[426589559,1782641432000,-250.0,0.00011974,2]
[426589560,1782641432000,-573.84,0.0001198,2]
[426589558,1782641432000,-45312.75491418,0.00011968,2]
[426589561,1782641432000,-573.84,0.00012005,2]
[426589565,1782641432000,-573.84,0.00012102,2]
[426589562,1782641432000,-573.84,0.00012029,2]
[426589563,1782641432000,-573.84,0.00012053,2]
[426589564,1782641432000,-573.84,0.00012078,2]
[426589577,1782641432000,-400.45,0.00012137,2]
[426589554,1782641432000,-706.95471448,0.00011968,2]
[426589578,1782641432000,-556.22278667,0.00012137,2]
[426589581,1782641432000,-175.69822376,0.00012137,2]
[426589580,1782641432000,-1517.27806922,0.00012137,2]
[426589568,1782641432000,-17.53173245,0.00012127,2]
[426589572,1782641432000,-150.99,0.00012127,2]
[426589566,1782641432000,-160.0,0.00012105,2]
[426589573,1782641432000,-547.11981922,0.00012137,2]
[426589576,1782641432000,-4235.79494247,0.00012137,2]
[426589574,1782641432000,-706.25018078,0.00012137,2]
[426589570,1782641432000,-556.30826755,0.00012127,2]
[426589575,1782641432000,-1872.98597788,0.00012137,2]
[426589579,1782641432000,-1241.56,0.00012137,2]
[426589583,1782641433000,311.26,0.0001137,2]
[426589584,1782641434000,311.26,0.00011433,2]
[426589588,1782641434000,311.26,0.00011684,2]
[426589587,1782641434000,311.26,0.00011622,2]
[426589586,1782641434000,311.26,0.00011559,2]
[426589585,1782641434000,311.26,0.00011496,2]
[426589589,1782641435000,311.26,0.00011747,2]
[426589590,1782641436000,311.26,0.0001181,2]
[426589637,1782641438000,-151.0,0.00012499,2]
[426589622,1782641438000,-573.84,0.00012371,2]
[426589616,1782641438000,-573.84,0.00012322,2]
[426589606,1782641438000,-573.84,0.00012176,2]
[426589618,1782641438000,-573.84,0.00012347,2]
[426589620,1782641438000,-150.0,0.00012352,2]
[426589612,1782641438000,-250.0,0.0001229,2]
[426589607,1782641438000,-573.84,0.000122,2]
[426589614,1782641438000,-573.84,0.00012298,2]
[426589610,1782641438000,-573.84,0.00012273,2]
[426589608,1782641438000,-573.84,0.00012224,2]
[426589605,1782641438000,-329.70610845,0.00012151,2]
[426589604,1782641438000,-311.26,0.00011936,2]
[426589603,1782641438000,-311.26,0.00011873,2]
[426589609,1782641438000,-573.84,0.00012249,2]
[426589635,1782641438000,-905.0,0.00012499,2]
[426589630,1782641438000,-573.84,0.0001242,2]
[426589626,1782641438000,-500.0,0.00012399,2]
[426589657,1782641438000,-167.16,0.00013348,2]
[426589655,1782641438000,-250.0,0.00013165,2]
[426589653,1782641438000,-4210.18766939,0.00012979,2]
[426589651,1782641438000,-1595.36279965,0.00012979,2]
[426589624,1782641438000,-573.84,0.00012395,2]
[426589644,1782641438000,-601.78389602,0.00012499,2]
[426589649,1782641438000,-607.11,0.00012653,2]
[426589662,1782641438000,-500.0,0.00013698,2]
[426589646,1782641438000,-908.0,0.00012499,2]
[426589641,1782641438000,-292.21610398,0.00012499,2]
[426589639,1782641438000,-911.0,0.00012499,2]
[426589628,1782641438000,-1253.37,0.00012419,2]
[426589633,1782641438000,-911.0,0.00012499,2]
[426589660,1782641438000,-481.31244987,0.00013698,2]
[426589632,1782641438000,-151.0,0.00012499,2]
[426589648,1782641438000,-884.0,0.00012499,2]
[426589663,1782641439000,-500.0,0.00013698,2]
[426589668,1782641439000,-500.0,0.00013698,2]
[426589666,1782641439000,-500.0,0.00013698,2]
[426589674,1782641439000,-250.0,0.00014,2]
[426589672,1782641439000,-1117.90274246,0.00013699,2]
[426589670,1782641439000,-200.0,0.00013699,2]
[426589677,1782641439000,-913.0,0.00014171,2]
[426589683,1782641439000,-1200.0,0.000147,5]
[426589684,1782641439000,-800.7806242,0.000148,5]
[426589682,1782641439000,-600.0,0.000146,5]
[426589681,1782641439000,-250.0,0.00014213,2]
[426589679,1782641439000,-906.0,0.00014171,2]
[426589676,1782641439000,-607.11,0.00014059,2]
[426589700,1782641440000,-1083.97389531,0.00014999,5]
[426589697,1782641440000,-464.69595253,0.000149,2]
[426589698,1782641440000,-2540.01425523,0.000149,2]
[426589708,1782641440000,-500.0,0.00014999,2]
[426589696,1782641440000,-4313.64962951,0.000149,2]
[426589702,1782641440000,-500.0,0.00014999,2]
[426589691,1782641440000,-672.66937846,0.000148,5]
[426589693,1782641440000,-2500.0,0.000149,5]
[426589692,1782641440000,-199.43151114,0.000149,2]
[426589690,1782641440000,-326.54999734,0.000148,5]
[426589689,1782641440000,-311.26,0.00012062,2]
[426589688,1782641440000,-311.26,0.00011999,2]
[426589695,1782641440000,-1566.64008318,0.000149,2]
[426589699,1782641440000,-202.38084184,0.0001499,2]
[426589694,1782641440000,-303.28243561,0.000149,2]
[426589703,1782641440000,-500.0,0.00014999,2]
[426589704,1782641440000,-500.0,0.00014999,2]
[426589717,1782641440000,-441.34069443,0.00014999,2]
[426589715,1782641440000,-500.0,0.00014999,2]
[426589716,1782641440000,-234.18384406,0.00014999,2]
[426589713,1782641440000,-450.96946335,0.00014999,2]
[426589710,1782641440000,-500.0,0.00014999,2]
[426589714,1782641440000,-500.0,0.00014999,2]
[426589709,1782641440000,-500.0,0.00014999,2]
[426589711,1782641440000,-500.0,0.00014999,2]
[426589706,1782641440000,-500.0,0.00014999,2]
[426589705,1782641440000,-500.0,0.00014999,2]
[426589701,1782641440000,-500.0,0.00014999,2]
[426589707,1782641440000,-348.39,0.00014999,2]
[426589712,1782641440000,-500.0,0.00014999,2]
[426589718,1782641441000,-58.65930557,0.00014999,2]
[426589719,1782641441000,-318.32025508,0.00014999,2]
[426589722,1782641441000,-500.0,0.00014999,2]
[426589720,1782641441000,-500.0,0.00014999,2]
[426589723,1782641441000,-152.11975433,0.00014999,2]
[426589724,1782641441000,-144.88070082,0.00014999,2]
[426589721,1782641441000,-158.26023096,0.00014999,2]
[426589725,1782641443000,-311.26,0.00012125,2]
[426589726,1782641443000,-311.26,0.00012188,2]
[426589727,1782641443000,-309.06687346,0.00014999,2]
[426589730,1782641443000,-476.00812654,0.00014999,2]
[426589729,1782641443000,-500.0,0.00014999,2]
[426589731,1782641443000,-21.79456072,0.00014999,2]
[426589728,1782641443000,-500.0,0.00014999,2]
[426589758,1782641446000,-500.0,0.00016438,2]
[426589752,1782641446000,-500.0,0.00016438,2]
[426589749,1782641446000,-500.0,0.00016438,2]
[426589751,1782641446000,-500.0,0.00016438,2]
[426589748,1782641446000,-500.0,0.00016438,2]
[426589743,1782641446000,-1955.95,0.00015634,2]
[426589744,1782641446000,-199.5,0.00015773,2]
[426589740,1782641446000,-150.88,0.00015,2]
[426589745,1782641446000,-160.0,0.00016,8]
[426589741,1782641446000,-1517.64,0.000153,2]
[426589739,1782641446000,-240.62,0.00015,2]
[426589738,1782641446000,-1026289.66974777,0.00015,2]
[426589736,1782641446000,-500.0,0.00014999,2]
[426589747,1782641446000,-4313.64962943,0.00016011,2]
[426589737,1782641446000,-1346609.71912068,0.00015,2]
[426589735,1782641446000,-2.19731274,0.00014999,2]
[426589734,1782641446000,-311.26,0.00012251,2]
[426589742,1782641446000,-607.11,0.00015464,2]
[426589756,1782641446000,-500.0,0.00016438,2]
[426589746,1782641446000,-300.0,0.00016,2]
[426589750,1782641446000,-500.0,0.00016438,2]
[426589754,1782641446000,-500.0,0.00016438,2]
[426589772,1782641446000,-1258.807,0.00018,2]
[426589773,1782641446000,-472.80025949,0.00018,2]
[426589771,1782641446000,-5901.85249872,0.00018,2]
[426589770,1782641446000,-50374.68755446,0.00018,2]
[426589768,1782641446000,-11110.75187119,0.00017979,2]
[426589769,1782641446000,-15033.2391,0.00017979,2]
[426589765,1782641446000,-4313.64962943,0.00017122,2]
[426589766,1782641446000,-7427.27009829,0.00017479,2]
[426589767,1782641446000,-5236.0,0.00017558,5]
[426589762,1782641446000,-476.3101439,0.00016438,2]
[426589764,1782641446000,-607.11,0.0001687,2]
[426589760,1782641446000,-500.0,0.00016438,2]
[426589761,1782641446000,-500.0,0.00016438,2]
[426589755,1782641446000,-500.0,0.00016438,2]
[426589753,1782641446000,-500.0,0.00016438,2]
[426589757,1782641446000,-500.0,0.00016438,2]
[426589759,1782641446000,-500.0,0.00016438,2]
[426589763,1782641446000,-172.02,0.00016712,2]
[426589781,1782641724000,-208.84608353,0.00011968,2]
[426589776,1782641724000,-150.0,0.00011729,2]
[426589775,1782641724000,-302.64,0.00011699,2]
[426589780,1782641724000,-302.64,0.00011945,2]
[426589778,1782641724000,-302.64,0.00011822,2]
[426589777,1782641724000,-302.64,0.0001176,2]
[426589783,1782641724000,-302.64,0.00012068,2]
[426589782,1782641724000,-302.64,0.00012007,2]
[426589785,1782641724000,-302.64,0.00012191,2]
[426589784,1782641724000,-302.64,0.0001213,2]
[426589786,1782641724000,-302.64,0.00012253,2]
[426589779,1782641724000,-302.64,0.00011883,2]
[426589790,1782641725000,-109.85391647,0.00012315,2]
[426589787,1782641725000,-311.26,0.00012314,2]
[426589788,1782641725000,-302.64,0.00012314,2]
[426589789,1782641725000,-891.0,0.00012315,2]
[426589791,1782641726000,-41.36567285,0.00012315,2]
[426589792,1782641726000,-150.0,0.00012315,2]
[426589793,1782641726000,-152.0,0.00012315,2]
[426589796,1782641726000,-888.0,0.00012315,2]
[426589794,1782641726000,-152.0,0.00012315,2]
[426589795,1782641726000,-152.0,0.00012315,2]
[426589798,1782641726000,-154.33293359,0.00012315,2]
[426589799,1782641726000,-150.0,0.00012315,2]
[426589801,1782641726000,-889.0,0.00012315,2]
[426589800,1782641726000,-882.0,0.00012315,2]
[426589802,1782641726000,-488.30139356,0.00012315,2]
[426589797,1782641726000,-901.0,0.00012315,2]
[426589805,1782641727000,-914.0,0.00012315,2]
[426589803,1782641727000,-415.69860644,0.00012315,2]
[426589807,1782641727000,-916.0,0.00012315,2]
[426589806,1782641727000,-151.0,0.00012315,2]
[426589804,1782641727000,-153.0,0.00012315,2]
[426589813,1782641728000,-897.0,0.00012338,2]
[426589814,1782641728000,-895.0,0.00012364,2]
[426589812,1782641728000,-889.0,0.00012326,2]
[426589811,1782641728000,-226.69860644,0.00012319,2]
[426589809,1782641728000,-889.0,0.00012316,2]
[426589808,1782641728000,-890.0,0.00012315,2]
[426589810,1782641728000,-671.30139356,0.00012319,2]
[426589818,1782641729000,-586.40139356,0.00012396,2]
[426589817,1782641729000,-311.26,0.00012377,2]
[426589816,1782641729000,-302.64,0.00012376,2]
[426589815,1782641729000,-892.0,0.00012364,2]
[426589824,1782641730000,160.0,0.00012339,2]
[426589823,1782641730000,-302.64,0.00012499,2]
[426589822,1782641730000,-311.26,0.0001244,2]
[426589819,1782641730000,-317.59860644,0.00012396,2]
[426589821,1782641730000,-302.64,0.00012438,2]
[426589820,1782641730000,-906.0,0.00012396,2]
[426589825,1782641731000,150.0,0.00012441,2]
[426589826,1782641758000,-5000.0,0.00012281,2]
[426589827,1782641760000,-5000.0,0.00012281,2]
[426589828,1782641761000,-5000.0,0.00012281,2]
[426589830,1782641762000,-5000.0,0.00012281,2]
[426589829,1782641762000,-5000.0,0.00012281,2]
[426589831,1782641763000,-5000.0,0.00012281,2]
[426589836,1782641765000,-150.0,0.00012564,2]
[426589833,1782641765000,-905.0,0.00012281,2]
[426589832,1782641765000,-10869.352923,0.00012281,2]
[426589834,1782641765000,-311.26,0.00012503,2]
[426589837,1782641765000,-311.26,0.00012566,2]
[426589835,1782641765000,-302.64,0.00012561,2]
[426589840,1782641765000,-150.0,0.00012687,2]
[426589839,1782641765000,-302.64,0.00012684,2]
[426589843,1782641765000,-182.0,0.00012811,2]
[426589842,1782641765000,-302.64,0.00012807,2]
[426589841,1782641765000,-302.64,0.00012745,2]
[426589838,1782641765000,-302.64,0.00012622,2]
[426589844,1782641766000,-302.64,0.00012869,2]
[426589845,1782641766000,-302.64,0.0001293,2]
[426589846,1782641766000,-500.0,0.00013698,2]
[426589848,1782641766000,-208.84608351,0.00014934,2]
[426589847,1782641766000,-787.080398,0.00014,2]
[426589849,1782641766000,-500.0,0.00014999,2]
[426589850,1782641766000,-500.0,0.00014999,2]
[426589853,1782641766000,-500.0,0.00014999,2]
[426589854,1782641766000,-500.0,0.00014999,2]
[426589851,1782641766000,-500.0,0.00014999,2]
[426589856,1782641766000,-500.0,0.00014999,2]
[426589855,1782641766000,-500.0,0.00014999,2]
[426589857,1782641766000,-500.0,0.00014999,2]
[426589858,1782641766000,250.0,0.00013509,2]
[426589859,1782641766000,250.0,0.00012392,2]
[426589860,1782641766000,250.0,0.00012495,2]
[426589852,1782641766000,-500.0,0.00014999,2]
[426589864,1782641767000,313.01,0.00012035,2]
[426589861,1782641767000,313.01,0.00011667,2]
[426589862,1782641767000,313.01,0.0001179,2]
[426589863,1782641767000,313.01,0.00011913,2]
[426589866,1782641768000,313.01,0.00012281,2]
[426589865,1782641768000,313.01,0.00012158,2]
[426589867,1782641769000,313.01,0.00012404,2]
[426589868,1782641770000,313.01,0.00012527,2]
[426589869,1782641770000,313.01,0.00012649,2]
[426589871,1782641771000,313.01,0.00012772,2]
[426589870,1782641771000,151.0,0.00012281,2]
[426589872,1782641772000,313.01,0.00012895,2]
[426589875,1782641794000,500.41322118,0.00013698,2]
[426589876,1782641796000,196.7601,0.00014,2]
[426589878,1782641807000,151.89007882,0.00014324,2]
[426589879,1782641811000,500.0,0.00012215,2]
[426589880,1782641853000,500.0,0.00014999,2]
[426589881,1782641888000,186.92,0.00024832,120]
[426589882,1782641940000,208.84608351,0.00014924,2]
[426589883,1782641947000,500.0,0.00012403,2]
[426589885,1782642048000,866.9132288,0.00012556,2]
[426589886,1782642070000,439.685,0.00012403,2]
[426589888,1782642106000,500.0,0.00014999,2]
[426589887,1782642106000,500.0,0.00014999,2]
[426589889,1782642107000,500.0,0.00014999,2]
[426589890,1782642107000,500.0,0.00014999,2]
[426589891,1782642107000,500.0,0.00014999,2]
[426589895,1782642108000,500.0,0.00014999,2]
[426589894,1782642108000,500.0,0.00014999,2]
[426589893,1782642108000,500.0,0.00014999,2]
[426589892,1782642108000,500.0,0.00014999,2]
[426589896,1782642109000,377.07,0.00014999,2]
[426589897,1782642130000,151.0,0.0001323,2]
[426589898,1782642134000,151.0,0.0001323,2]
[426589899,1782642140000,500.0,0.00014999,2]
[426589901,1782642140000,500.0,0.00014999,2]
[426589900,1782642140000,500.0,0.00014999,2]
[426589904,1782642141000,180.84613501,0.00014999,2]
[426589903,1782642141000,500.0,0.00014999,2]
[426589902,1782642141000,500.0,0.00014999,2]
[426589905,1782642288000,176.08,0.00012299,2]
[426589914,1782642345000,-151.0,0.00015023,2]
[426589911,1782642345000,-151.0,0.00015023,2]
[426589912,1782642345000,-153.0,0.00015023,2]
[426589910,1782642345000,-250.0,0.00015023,2]
[426589909,1782642345000,-600.0,0.00015023,2]
[426589908,1782642345000,-300.0,0.00015023,2]
[426589907,1782642345000,-150.0,0.00015023,2]
[426589915,1782642345000,-151.0,0.00015023,2]
[426589906,1782642345000,-300.0,0.00015023,2]
[426589916,1782642345000,-150.0,0.00015023,2]
[426589913,1782642345000,-151.0,0.00015023,2]
[426589918,1782642345000,-150.0,0.00015023,2]
[426589919,1782642345000,-150.0,0.00015023,2]
[426589920,1782642345000,-151.0,0.00015023,2]
[426589926,1782642345000,-152.0,0.00015023,2]
[426589921,1782642345000,-151.0,0.00015023,2]
[426589922,1782642345000,-151.0,0.00015023,2]
[426589923,1782642345000,-153.0,0.00015023,2]
[426589924,1782642345000,-151.0,0.00015023,2]
[426589925,1782642345000,-152.0,0.00015023,2]
[426589927,1782642345000,-152.0,0.00015023,2]
[426589928,1782642345000,-269.40935882,0.00015023,2]
[426589917,1782642345000,-151.0,0.00015023,2]
[426589929,1782642523000,6283.2130349,0.00013213,2]
[426589930,1782642545000,230.49676754,0.00014259,2]
[426589932,1782642602000,561.17,0.00014944,2]
[426589933,1782642603000,500.0,0.00014923,2]
[426589934,1782642604000,750.0,0.0001952,30]
[426589935,1782642631000,296.11,0.00014917,2]
[426589973,1782642633000,-889.0,0.00015024,2]
[426589969,1782642633000,-151.0,0.00015024,2]
[426589964,1782642633000,-250.0,0.00015023,2]
[426589963,1782642633000,-153.0,0.00015023,2]
[426589957,1782642633000,-151.0,0.00015023,2]
[426589962,1782642633000,-151.0,0.00015023,2]
[426589959,1782642633000,-150.0,0.00015023,2]
[426589961,1782642633000,-150.0,0.00015023,2]
[426589958,1782642633000,-153.0,0.00015023,2]
[426589956,1782642633000,-111.34668306,0.00015023,2]
[426589950,1782642633000,-150.0,0.00015021,2]
[426589951,1782642633000,-150.0,0.00015021,2]
[426589952,1782642633000,-291.11884623,0.00015022,2]
[426589954,1782642633000,-150.0,0.00015023,2]
[426589944,1782642633000,-673.36124049,0.00015021,2]
[426589946,1782642633000,-150.0,0.00015021,2]
[426589949,1782642633000,-152.0,0.00015021,2]
[426589947,1782642633000,-150.0,0.00015021,2]
[426589948,1782642633000,-151.0,0.00015021,2]
[426589970,1782642633000,-885.0,0.00015024,2]
[426589955,1782642633000,-41.65331694,0.00015023,2]
[426589945,1782642633000,-150.0,0.00015021,2]
[426589943,1782642633000,-300.0,0.00015021,2]
[426589942,1782642633000,-2840.19,0.00015021,2]
[426589953,1782642633000,-150.0,0.00015023,2]
[426589972,1782642633000,-150.0,0.00015024,2]
[426589960,1782642633000,-152.0,0.00015023,2]
[426589967,1782642633000,-901.0,0.00015024,2]
[426589971,1782642633000,-888.0,0.00015024,2]
[426590001,1782642633000,-150.0,0.00015024,2]
[426589998,1782642633000,-150.0,0.00015024,2]
[426589991,1782642633000,-151.0,0.00015024,2]